bitfinex-derivatives/quotes_BTCF0:USTF0_20250308
["timestamp","ask_amount","ask_price","bid_price","bid_amount"]
[1741434508338,0.44092,85825.0,85824.0,0.1814268]
[1741434508933,0.5574454,85825.0,85824.0,0.0649]
[1741434510048,0.5574454,85825.0,85824.0,0.0321]
[1741434510438,0.6216454,85825.0,85824.0,0.0321]
[1741434510638,0.62173863,85825.0,85824.0,0.0321]
[1741434510833,0.62175499,85825.0,85824.0,0.0321]
[1741434511035,0.6216454,85825.0,85824.0,0.0321]
[1741434516043,0.63912541,85825.0,85824.0,0.0321]
[1741434516454,0.63912541,85825.0,85820.0,0.00011698]
[1741434516455,0.1165309,85821.0,85820.0,0.00011698]
[1741434516746,0.4773309,85821.0,85820.0,0.00011698]
[1741434517147,0.48126528,85821.0,85820.0,0.00011698]
[1741434518951,0.48116943,85821.0,85820.0,0.00011698]
[1741434520253,0.53784451,85821.0,85820.0,0.00011698]
[1741434520554,0.61592451,85821.0,85820.0,0.00011698]
[1741434521257,0.64592451,85821.0,85820.0,0.00011698]
[1741434521448,0.64592451,85821.0,85812.0,0.0623]
[1741434521449,0.1165417,85813.0,85812.0,0.0623]
[1741434521649,0.4773417,85813.0,85812.0,0.0623]
[1741434522145,0.3608,85813.0,85812.0,0.0623]
[1741434522345,0.0612,85814.0,85812.0,0.0623]
[1741434522546,0.0612,85814.0,85813.0,0.1165417]
[1741434522848,0.49555508,85821.0,85812.0,0.0653]
[1741434522849,0.05667508,85821.0,85812.0,0.0653]
[1741434523048,0.07833918,85814.0,85813.0,0.1165417]
[1741434523245,0.07833918,85814.0,85813.0,0.1807417]
[1741434523445,9.918e-05,85814.0,85813.0,0.0642]
[1741434523645,0.19483958,85814.0,85813.0,0.0642]
[1741434524049,0.07829918,85814.0,85813.0,0.0642]
[1741434524250,0.07829918,85814.0,85813.0,0.1807417]
[1741434524451,0.07829918,85814.0,85813.0,0.0642]
[1741434524654,0.19483958,85814.0,85813.0,0.0955]
[1741434524950,0.1947404,85814.0,85813.0,0.0955]
[1741434526147,0.1947404,85814.0,85813.0,0.0975]
[1741434527449,0.21478652,85814.0,85813.0,0.0975]
[1741434527650,0.21482569,85814.0,85813.0,0.0975]
[1741434527846,0.21470161,85814.0,85813.0,0.0975]
[1741434528351,0.09816121,85814.0,85813.0,0.0975]
[1741434528549,0.08675654,85814.0,85813.0,0.0975]
[1741434528746,0.08675654,85814.0,85813.0,0.2140417]
[1741434529261,0.08675654,85814.0,85813.0,0.0975]
[1741434529650,0.20329694,85814.0,85813.0,0.0975]
[1741434529852,0.08675654,85814.0,85813.0,0.0975]
[1741434530050,0.08675654,85814.0,85813.0,0.2140417]
[1741434530361,0.20329694,85814.0,85813.0,0.0975]
[1741434532866,0.34195095,85814.0,85813.0,0.0975]
[1741434533159,0.22541055,85814.0,85813.0,0.0975]
[1741434533353,0.34195095,85814.0,85813.0,0.2140417]
[1741434533757,0.22541055,85814.0,85813.0,0.2140417]
[1741434533958,0.22553957,85814.0,85813.0,0.2140417]
[1741434534352,0.34207997,85814.0,85813.0,0.2140417]
[1741434535358,0.34195095,85814.0,85813.0,0.0975]
[1741434535558,0.26375095,85814.0,85813.0,0.0975]
[1741434535869,0.34167095,85814.0,85813.0,0.0975]
[1741434536061,0.35915096,85814.0,85813.0,0.0975]
[1741434536261,0.34167095,85814.0,85813.0,0.0975]
[1741434536458,0.35915096,85814.0,85813.0,0.0975]
[1741434536864,0.24272313,85814.0,85813.0,0.2140417]
[1741434537173,0.35926353,85814.0,85813.0,0.2140417]
[1741434537760,0.22060952,85814.0,85813.0,0.0975]
[1741434538165,0.10406912,85814.0,85813.0,0.2140417]
[1741434538666,0.08658911,85814.0,85813.0,0.2140417]
[1741434539170,0.20312951,85814.0,85813.0,0.0975]
[1741434539366,0.20312951,85814.0,85813.0,0.2140417]
[1741434540365,0.08658911,85814.0,85813.0,0.2140417]
[1741434540955,0.08658911,85814.0,85813.0,0.0975]
[1741434541163,0.20312951,85814.0,85813.0,0.0975]
[1741434541569,0.08658911,85814.0,85813.0,0.0975]
[1741434541754,0.08658911,85814.0,85813.0,0.2140417]
[1741434542565,0.08658911,85814.0,85813.0,0.5748417]
[1741434542566,0.00866911,85814.0,85813.0,0.5748417]
[1741434542756,0.08666911,85814.0,85813.0,0.2140417]
[1741434542962,0.20320951,85814.0,85813.0,0.0975]
[1741434543456,0.08666911,85814.0,85813.0,0.2140417]
[1741434543662,0.08666911,85814.0,85813.0,0.22551208]
[1741434544170,0.08666911,85814.0,85813.0,0.2140417]
[1741434544973,0.20320951,85814.0,85813.0,0.2140417]
[1741434545670,0.08666911,85814.0,85813.0,0.2140417]
[1741434548968,0.08666911,85814.0,85813.0,0.0975]
[1741434549167,0.08666911,85814.0,85813.0,0.2140417]
[1741434551268,0.20320951,85814.0,85813.0,0.0975]
[1741434551477,0.20320951,85814.0,85813.0,0.2140417]
[1741434552473,0.08666911,85814.0,85813.0,0.2140417]
[1741434552870,0.08666911,85814.0,85813.0,0.0662]
[1741434552871,0.20309694,85814.0,85813.0,0.0662]
[1741434553069,0.26739694,85814.0,85813.0,0.002]
[1741434553673,0.15085654,85814.0,85813.0,0.1185417]
[1741434553973,0.15085654,85814.0,85813.0,0.1794417]
[1741434554174,0.00868428,85814.0,85813.0,0.1794417]
[1741434554378,0.00012774,85814.0,85813.0,0.21874391]
[1741434555078,0.00012774,85814.0,85813.0,0.1794417]
[1741434558082,0.11666814,85814.0,85813.0,0.1794417]
[1741434558769,0.11666814,85814.0,85813.0,0.0629]
[1741434558971,0.11666814,85814.0,85813.0,0.1794417]
[1741434559278,0.00012774,85814.0,85813.0,0.1794417]
[1741434561972,0.06362774,85814.0,85813.0,0.1794417]
[1741434564172,0.00012774,85814.0,85813.0,0.1794417]
[1741434566281,1e-08,85814.0,85813.0,0.3294417]
[1741434566480,0.10430521,85818.0,85817.0,0.1165363]
[1741434566674,0.10430521,85818.0,85817.0,0.55045975]
[1741434566983,0.10430521,85818.0,85817.0,0.51504717]
[1741434567384,0.10441259,85818.0,85817.0,0.69594717]
[1741434567676,0.10441259,85818.0,85817.0,0.76404516]
[1741434567882,0.10441259,85818.0,85817.0,0.76504516]
[1741434568082,0.13907361,85822.0,85817.0,0.90880508]
[1741434568272,0.10458351,85822.0,85821.0,0.4773309]
[1741434568474,0.10458351,85822.0,85821.0,0.55043976]
[1741434568675,0.17325305,85827.0,85826.0,0.1165241]
[1741434568881,0.17325305,85827.0,85826.0,0.51503497]
[1741434569096,0.17337471,85827.0,85826.0,0.51503497]
[1741434569680,0.17337471,85827.0,85826.0,0.61103497]
[1741434571081,0.09310092,85832.0,85826.0,0.72379087]
[1741434571279,4e-08,85837.0,85836.0,0.1165105]
[1741434571469,4e-08,85837.0,85836.0,0.7361597]
[1741434571669,4e-08,85837.0,85836.0,0.8861597]
[1741434572080,8.875e-05,85837.0,85836.0,0.9482597]
[1741434572983,8.875e-05,85837.0,85836.0,0.7982597]
[1741434573183,0.17370455,85854.0,85836.0,0.8317492]
[1741434573385,0.17370455,85854.0,85853.0,0.1164874]
[1741434573985,0.17370455,85854.0,85853.0,0.12794754]
[1741434574184,0.17382817,85854.0,85853.0,0.1779874]
[1741434575384,0.17582817,85854.0,85853.0,0.1779874]
[1741434576182,0.00212362,85854.0,85853.0,0.1472874]
[1741434577372,0.00012362,85854.0,85853.0,0.1472874]
[1741434577572,0.00112362,85854.0,85853.0,0.1472874]
[1741434578183,0.00012362,85854.0,85853.0,0.1164874]
[1741434578375,0.00312362,85854.0,85853.0,0.1164874]
[1741434578986,0.00312362,85854.0,85853.0,0.1813874]
[1741434579183,0.00212362,85854.0,85853.0,0.1813874]
[1741434581787,0.00012362,85854.0,85853.0,0.1813874]
[1741434581987,0.00012362,85854.0,85853.0,0.1843874]
[1741434582688,0.00012362,85854.0,85853.0,0.1833874]
[1741434584389,0.00012362,85854.0,85853.0,0.1813874]
[1741434585299,0.00012362,85854.0,85853.0,0.1823874]
[1741434587998,0.03112362,85854.0,85853.0,0.1823874]
[1741434588389,0.03112362,85854.0,85853.0,0.1813874]
[1741434594096,0.03112362,85854.0,85853.0,0.1833874]
[1741434594893,0.03112362,85854.0,85853.0,0.1823874]
[1741434595697,0.03112362,85854.0,85853.0,0.1174874]
[1741434596397,0.03112362,85854.0,85853.0,0.1493874]
[1741434596790,0.14760972,85854.0,85853.0,0.1174874]
[1741434596994,0.1474861,85854.0,85853.0,0.001]
[1741434597398,0.1164956,85847.0,85843.0,0.20877458]
[1741434597594,0.1164996,85844.0,85843.0,0.20877458]
[1741434598304,0.1164996,85844.0,85843.0,0.27836611]
[1741434598497,0.4772996,85844.0,85843.0,0.27836611]
[1741434598993,0.4772996,85844.0,85843.0,0.27936611]
[1741434599498,0.4772996,85844.0,85843.0,0.17956611]
[1741434599703,0.4772996,85844.0,85838.0,0.15740877]
[1741434599704,0.1165064,85839.0,85838.0,0.15740877]
[1741434600000,0.1165064,85839.0,85838.0,0.04640877]
[1741434600397,0.2665064,85839.0,85838.0,0.04640877]
[1741434600587,0.26659043,85839.0,85838.0,0.04640877]
[1741434600793,0.2666062,85839.0,85838.0,0.04640877]
[1741434600998,0.26662021,85839.0,85838.0,0.04640877]
[1741434601298,0.2665064,85839.0,85838.0,0.04640877]
[1741434601601,0.4902064,85839.0,85838.0,0.04740877]
[1741434602296,0.4912064,85839.0,85838.0,0.04740877]
[1741434602596,0.49353634,85839.0,85838.0,0.04740877]
[1741434603398,0.72842805,85839.0,85838.0,0.001]
[1741434603898,0.57842805,85839.0,85838.0,0.001]
[1741434604095,0.57851987,85839.0,85838.0,0.001]
[1741434604298,0.57842805,85839.0,85838.0,0.001]
[1741434604605,0.72842805,85839.0,85838.0,0.001]
[1741434605404,0.11652,85829.0,85823.0,0.0319]
[1741434605608,0.55544,85829.0,85823.0,0.0319]
[1741434606495,0.55746823,85829.0,85823.0,0.0319]
[1741434606700,0.55746823,85829.0,85823.0,0.1484275]
[1741434606906,0.55746823,85829.0,85823.0,0.0319]
[1741434608301,0.56146823,85829.0,85823.0,0.0319]
[1741434608696,0.55746823,85829.0,85823.0,0.0319]
[1741434608908,0.56446823,85829.0,85824.0,0.0327]
[1741434609306,0.56446823,85829.0,85825.0,0.0326]
[1741434609902,0.56446823,85829.0,85827.0,0.1165225]
[1741434610102,0.56272,85829.0,85828.0,0.06197468]
[1741434610913,0.48432,85829.0,85828.0,0.06197468]
[1741434611207,0.56278656,85829.0,85828.0,0.06197468]
[1741434611407,0.56268,85829.0,85828.0,0.06197468]
[1741434614117,0.56292,85829.0,85828.0,0.06197468]
[1741434615816,0.56292,85829.0,85787.0,0.0379914]
[1741434615817,0.116558,85801.0,85800.0,0.1]
[1741434616013,0.116558,85801.0,85800.0,0.1617]
[1741434616014,0.11670209,85801.0,85800.0,0.1617]
[1741434617015,0.00014409,85801.0,85800.0,0.2782594]
[1741434617210,0.00014409,85801.0,85800.0,0.3083594]
[1741434617812,0.00014409,85801.0,85800.0,0.1918]
[1741434618120,0.11670209,85801.0,85800.0,0.2993594]
[1741434618310,0.00014409,85801.0,85800.0,0.2993594]
[1741434618815,0.07864,85807.0,85806.0,0.1165512]
[1741434619118,0.02874,85807.0,85806.0,0.1165512]
[1741434619320,0.1165512,85806.0,85805.0,0.0315]
[1741434619710,0.11665101,85806.0,85805.0,0.04475189]
[1741434622112,0.47745101,85806.0,85805.0,0.04475189]
[1741434622713,0.47745101,85806.0,85805.0,0.0315]
[1741434624418,0.4773512,85806.0,85805.0,0.0315]
[1741434626818,0.3608,85806.0,85805.0,0.1480526]
[1741434627013,0.3109,85806.0,85805.0,0.1480526]
[1741434627213,0.31100243,85806.0,85805.0,0.1480526]
[1741434627615,0.31100243,85806.0,85805.0,0.16141146]
[1741434627816,0.00017482,85809.0,85808.0,0.1165485]
[1741434628115,0.19528202,85809.0,85808.0,0.01335886]
[1741434628524,0.07873482,85809.0,85808.0,0.12990736]
[1741434628721,0.08747,85809.0,85808.0,0.12990736]
[1741434629519,0.73488001,85825.0,85808.0,0.14132306]
[1741434629720,0.81340001,85825.0,85824.0,0.1165268]
[1741434629914,0.73428,85825.0,85824.0,0.12996166]
[1741434630114,0.73428,85825.0,85824.0,0.01343486]
[1741434630319,1.09508,85825.0,85824.0,0.01343486]
[1741434630615,1.09516803,85825.0,85824.0,0.01343486]
[1741434630821,1.09516803,85825.0,85824.0,0.12996166]
[1741434631024,1.09516803,85825.0,85824.0,0.01343486]
[1741434631025,1.10407303,85825.0,85824.0,0.01343486]
[1741434631216,1.22059843,85825.0,85824.0,0.01343486]
[1741434631421,1.25279843,85825.0,85824.0,0.01343486]
[1741434631827,0.1165268,85824.0,85823.0,0.0318]
[1741434632016,0.1165268,85824.0,85823.0,0.045083]
[1741434632220,0.2272868,85824.0,85823.0,0.045083]
[1741434632423,0.18197729,85824.0,85823.0,0.045083]
[1741434632714,0.2603868,85824.0,85823.0,0.0318]
[1741434635223,0.1818268,85824.0,85823.0,0.0318]
[1741434635423,0.2605468,85824.0,85823.0,0.0318]
[1741434636133,0.27802681,85824.0,85823.0,0.0318]
[1741434636727,0.27802681,85824.0,85823.0,0.0451148]
[1741434638727,0.27802681,85824.0,85823.0,0.0318]
[1741434639630,0.27815316,85824.0,85823.0,0.0318]
[1741434639830,0.33478933,85824.0,85823.0,0.0318]
[1741434640136,0.33469904,85824.0,85823.0,0.0318]
[1741434640526,0.1165363,85817.0,85816.0,0.0624]
[1741434641231,0.1482763,85817.0,85816.0,0.0624]
[1741434641431,0.1481363,85817.0,85816.0,0.0624]
[1741434641831,0.1809363,85817.0,85816.0,0.0624]
[1741434642533,0.0644,85817.0,85816.0,0.0624]
[1741434642834,0.1809363,85817.0,85816.0,0.07570707]
[1741434643632,0.1809363,85817.0,85816.0,0.07570768]
[1741434645131,0.19252402,85817.0,85816.0,0.07570768]
[1741434646536,0.19261238,85817.0,85816.0,0.07570768]
[1741434646728,0.19264238,85817.0,85816.0,0.07570768]
[1741434646922,0.19252402,85817.0,85816.0,0.07570768]
[1741434647128,0.15972402,85817.0,85816.0,0.07570768]
[1741434647323,0.0316,85817.0,85816.0,0.07570768]
[1741434647531,0.17345778,85822.0,85821.0,0.1165309]
[1741434647834,0.22618837,85822.0,85821.0,0.03530142]
[1741434648035,0.22618837,85822.0,85821.0,0.15183232]
[1741434648927,0.22618837,85822.0,85821.0,0.01330768]
[1741434648928,0.34271787,85822.0,85821.0,0.01330768]
[1741434649128,0.34271787,85822.0,85821.0,0.07790768]
[1741434649539,0.3425938,85822.0,85821.0,0.04580768]
[1741434650136,0.3730938,85822.0,85821.0,0.04580768]
[1741434650336,0.4043938,85822.0,85821.0,0.04580768]
[1741434652133,0.40447699,85822.0,85821.0,0.04580768]
[1741434652334,0.4043938,85822.0,85821.0,0.04580768]
[1741434652531,0.2571695,85822.0,85821.0,0.04580768]
[1741434652731,0.25730653,85822.0,85821.0,0.04580768]
[1741434652937,0.2571695,85822.0,85821.0,0.04580768]
[1741434653144,0.25731492,85822.0,85821.0,0.04580768]
[1741434653440,0.2571695,85822.0,85821.0,0.04580768]
[1741434656143,0.27464951,85822.0,85821.0,0.04580768]
[1741434656949,0.27464951,85822.0,85821.0,0.06791834]
[1741434658648,0.24414951,85822.0,85821.0,0.06791834]
[1741434658949,0.21264951,85822.0,85821.0,0.06791834]
[1741434659751,0.09612001,85822.0,85821.0,0.18444924]
[1741434659953,0.0962027,85822.0,85821.0,0.18444924]
[1741434660157,0.0962027,85822.0,85821.0,0.09971834]
[1741434660354,0.0962027,85822.0,85821.0,0.21624924]
[1741434660551,0.07872269,85822.0,85821.0,0.09971834]
[1741434660853,8.269e-05,85822.0,85821.0,0.09971834]
[1741434661053,0.07872269,85822.0,85821.0,0.21624924]
[1741434661359,0.19525219,85822.0,85821.0,0.09971834]
[1741434661545,0.1951695,85822.0,85821.0,0.09971834]
[1741434661953,0.19527448,85822.0,85821.0,0.09971834]
[1741434662149,0.1951695,85822.0,85821.0,0.09971834]
[1741434662859,0.07864,85822.0,85821.0,0.09971834]
[1741434663046,0.05240767,85822.0,85821.0,0.09971834]
[1741434663550,0.05240767,85822.0,85821.0,0.21624924]
[1741434664053,0.05253203,85822.0,85821.0,0.21624924]
[1741434664255,0.05251408,85822.0,85821.0,0.21624924]
[1741434664456,0.05254294,85822.0,85821.0,0.21624924]
[1741434664649,0.05240767,85822.0,85821.0,0.09971834]
[1741434664844,0.008905,85825.0,85821.0,0.09971834]
[1741434665044,8.733e-05,85822.0,85821.0,0.1808309]
[1741434665250,0.216156,85829.0,85828.0,0.1165214]
[1741434665455,0.00872983,85829.0,85828.0,0.15239823]
[1741434665658,0.07872,85831.0,85830.0,0.1165186]
[1741434665857,0.07872,85831.0,85830.0,0.15239543]
[1741434666056,0.73496001,85835.0,85830.0,0.15239543]
[1741434666057,0.00060001,85835.0,85832.0,0.1165159]
[1741434666263,0.10762617,85840.0,85839.0,0.1165064]
[1741434666445,0.10762617,85840.0,85839.0,0.55499205]
[1741434666760,0.10762617,85840.0,85839.0,0.70499205]
[1741434666960,0.07120677,85840.0,85839.0,0.76393697]
[1741434667453,0.07130974,85840.0,85839.0,0.98523697]
[1741434667859,0.07130974,85840.0,85839.0,0.92629205]
[1741434669057,0.07130974,85840.0,85839.0,0.77629205]
[1741434669863,0.07130974,85840.0,85839.0,0.83989205]
[1741434670557,0.07130974,85840.0,85839.0,0.83994766]
[1741434671658,0.00010297,85840.0,85839.0,0.83994766]
[1741434672261,0.11660807,85840.0,85839.0,0.32083244]
[1741434672966,0.11660807,85840.0,85839.0,0.41522641]
[1741434673164,0.00010297,85840.0,85839.0,0.41522641]
[1741434674454,0.00010297,85840.0,85839.0,0.41499443]
[1741434675055,0.00871387,85851.0,85847.0,0.1164956]
[1741434675263,0.00871387,85851.0,85847.0,0.15205081]
[1741434675663,0.00871387,85851.0,85847.0,0.21515081]
[1741434676063,0.00029225,85848.0,85847.0,0.21515081]
[1741434678070,0.00029225,85848.0,85847.0,0.19318363]
[1741434678756,0.36109225,85848.0,85847.0,0.04658803]
[1741434678962,0.00029225,85848.0,85847.0,0.04658803]
[1741434679573,0.06289225,85848.0,85847.0,0.16308363]
[1741434679967,0.06289225,85848.0,85847.0,0.21638608]
[1741434680964,0.00029225,85848.0,85847.0,0.24948608]
[1741434681965,0.00029225,85848.0,85847.0,0.61028608]
[1741434682662,0.00011743,85848.0,85847.0,0.61028608]
[1741434682861,0.0315,85856.0,85855.0,0.1164847]
[1741434683060,0.0623,85856.0,85855.0,0.15197518]
[1741434683765,0.03092746,85856.0,85855.0,0.21487518]
[1741434683968,0.00012746,85856.0,85855.0,0.21487518]
[1741434684665,0.00889558,85856.0,85855.0,0.21487518]
[1741434685670,0.04019558,85856.0,85855.0,0.21487518]
[1741434685876,0.00012746,85856.0,85855.0,0.21487518]
[1741434686170,0.00012746,85856.0,85855.0,0.1793847]
[1741434686469,0.00012746,85856.0,85855.0,0.21553223]
[1741434687273,0.00060001,85862.0,85855.0,0.21553223]
[1741434687571,0.00017472,85864.0,85863.0,0.1164739]
[1741434687772,0.00017472,85864.0,85863.0,0.15262143]
[1741434687964,0.00017472,85864.0,85863.0,0.16734806]
[1741434688164,0.00017472,85864.0,85863.0,0.22824806]
[1741434688364,0.00029896,85864.0,85863.0,0.27099184]
[1741434688566,0.00029896,85864.0,85863.0,0.22824806]
[1741434688878,0.11338,85879.0,85863.0,0.15451798]
[1741434689173,0.0305,85878.0,85877.0,0.1164549]
[1741434689376,0.0305,85878.0,85877.0,0.15260243]
[1741434689762,0.03060369,85878.0,85877.0,0.15260243]
[1741434690476,0.06140369,85878.0,85877.0,0.16732906]
[1741434691069,0.17785719,85878.0,85877.0,0.05087416]
[1741434691377,0.17785719,85878.0,85877.0,0.16732906]
[1741434691564,0.06140369,85878.0,85877.0,0.16732906]
[1741434692175,0.06140369,85878.0,85877.0,0.15260243]
[1741434693278,0.06140369,85878.0,85877.0,0.1671521]
[1741434693777,0.06140369,85878.0,85877.0,0.0506972]
[1741434693968,0.06140369,85878.0,85877.0,0.1671521]
[1741434694164,0.06140369,85878.0,85877.0,0.16765513]
[1741434695171,0.06140369,85878.0,85877.0,0.16767162]
[1741434696085,0.06140369,85878.0,85877.0,0.16765272]
[1741434697776,0.03519023,85878.0,85877.0,0.16765272]
[1741434699582,0.03090369,85878.0,85877.0,0.16765272]
[1741434699784,0.00017472,85886.0,85884.0,0.1164454]
[1741434700085,0.00017472,85886.0,85885.0,0.454033]
[1741434700284,0.00017472,85886.0,85885.0,0.52831273]
[1741434700285,0.03217472,85886.0,85885.0,0.52831273]
[1741434700680,0.03217472,85886.0,85885.0,0.57022037]
[1741434700885,0.0637806,85886.0,85885.0,0.52819365]
[1741434701370,0.0637806,85886.0,85885.0,0.57038893]
[1741434701576,0.0322806,85886.0,85885.0,0.57038893]
[1741434702185,0.0002806,85886.0,85885.0,0.57053321]
[1741434703389,0.0002806,85886.0,85885.0,0.52833793]
[1741434703581,0.0002806,85886.0,85885.0,0.56988728]
[1741434705279,0.0002806,85886.0,85885.0,0.60308728]
[1741434706275,0.0002806,85886.0,85885.0,0.56153793]
[1741434706674,0.0002806,85886.0,85885.0,0.6029811]
[1741434707584,0.0002806,85886.0,85885.0,0.59483793]
[1741434707792,0.0002806,85886.0,85885.0,0.63626907]
[1741434707988,0.0002806,85886.0,85885.0,0.59483793]
[1741434708987,0.0645806,85886.0,85885.0,0.59483793]
[1741434713495,0.1810233,85886.0,85885.0,0.11759393]
[1741434713691,0.1810233,85886.0,85885.0,0.23403793]
[1741434713692,0.0645806,85886.0,85885.0,0.23403793]
[1741434714187,0.0645806,85886.0,85885.0,0.23333997]
[1741434714396,0.1810233,85886.0,85885.0,0.11689597]
[1741434715389,0.0645806,85886.0,85885.0,0.11689597]
[1741434715588,0.0645806,85886.0,85885.0,0.23333997]
[1741434715788,0.1810233,85886.0,85885.0,0.08369597]
[1741434716288,0.1810233,85886.0,85885.0,0.05039597]
[1741434716589,0.1810233,85886.0,85885.0,0.05082203]
[1741434716895,0.19262858,85886.0,85885.0,0.16726603]
[1741434717691,0.19262858,85886.0,85885.0,0.23096603]
[1741434718193,0.5533227,85886.0,85885.0,0.05082203]
[1741434718491,0.52710732,85886.0,85885.0,0.05082203]
[1741434719190,0.52722126,85886.0,85885.0,0.05082203]
[1741434719391,0.52710732,85886.0,85885.0,0.05082203]
[1741434720582,0.52913417,85886.0,85885.0,0.05082203]
[1741434721397,0.52913417,85886.0,85885.0,0.05053853]
[1741434723293,0.52913417,85886.0,85869.0,0.20869566]
[1741434723294,0.1164644,85870.0,85869.0,0.20869566]
[1741434723493,0.91726647,85870.0,85869.0,0.20869566]
[1741434723683,1.0671444,85870.0,85869.0,0.20869566]
[1741434723886,1.06722837,85870.0,85869.0,0.20869566]
[1741434724088,1.0672448,85870.0,85869.0,0.20869566]
[1741434724389,1.0671444,85870.0,85869.0,0.20869566]
[1741434726290,1.12379346,85870.0,85869.0,0.00017472]
[1741434726799,1.12582075,85870.0,85869.0,0.00017472]
[1741434727386,0.97582075,85870.0,85869.0,0.00017472]
[1741434727895,0.41744906,85870.0,85869.0,0.11664042]
[1741434728098,0.41744906,85870.0,85869.0,0.00017472]
[1741434728393,0.41744906,85870.0,85869.0,0.06547472]
[1741434728394,0.4175697,85870.0,85869.0,0.06547472]
[1741434728594,0.41744906,85870.0,85869.0,0.06547472]
[1741434728791,0.4175337,85870.0,85869.0,0.06547472]
[1741434729099,0.53391346,85870.0,85869.0,0.06547472]
[1741434730786,0.4772644,85870.0,85869.0,0.06547472]
[1741434732295,0.5562244,85870.0,85869.0,0.06547472]
[1741434733301,0.5562244,85870.0,85869.0,0.08746144]
[1741434733496,0.55634142,85870.0,85869.0,0.08746144]
[1741434733704,0.55631173,85870.0,85869.0,0.08746144]
[1741434734002,0.5562244,85870.0,85869.0,0.08746144]
[1741434734195,0.5562244,85870.0,85869.0,0.05446144]
[1741434735193,0.5562244,85870.0,85869.0,0.05444609]
[1741434735394,0.5562244,85870.0,85869.0,0.08297167]
[1741434735597,0.5562244,85870.0,85869.0,0.0610003]
[1741434735999,0.57370441,85870.0,85869.0,0.0610003]
[1741434736199,0.55634159,85870.0,85869.0,0.0610003]
[1741434736492,0.57370441,85870.0,85869.0,0.0610003]
[1741434737004,0.57370441,85870.0,85869.0,0.04726832]
[1741434737194,0.57378656,85870.0,85869.0,0.060873]
[1741434737396,0.57370441,85870.0,85869.0,0.060873]
[1741434737604,0.57370441,85870.0,85869.0,0.08274477]
[1741434738108,0.60560441,85870.0,85869.0,0.08274477]
[1741434739003,0.60560441,85870.0,85869.0,0.08306966]
[1741434739309,0.60560441,85870.0,85869.0,0.1071184]
[1741434740707,0.60560441,85870.0,85869.0,0.08306966]
[1741434742398,0.6057054,85870.0,85869.0,0.08306966]
[1741434742595,0.60560441,85870.0,85869.0,0.08306966]
[1741434743411,0.96640441,85870.0,85869.0,0.08306966]
[1741434744002,0.96654329,85870.0,85869.0,0.08306966]
[1741434744208,0.96652093,85870.0,85869.0,0.08306966]
[1741434744515,0.96640441,85870.0,85869.0,0.08306966]
[1741434745005,0.96640441,85870.0,85869.0,0.08310201]
[1741434745905,0.96640441,85870.0,85869.0,0.05080201]
[1741434746306,1.11640441,85870.0,85869.0,0.05062729]
[1741434746606,1.11873351,85870.0,85869.0,0.02415048]
[1741434747413,1.11873351,85870.0,85869.0,1e-08]
[1741434747708,1.12076085,85870.0,85869.0,1e-08]
[1741434747912,0.97076085,85870.0,85869.0,1e-08]
[1741434749311,0.97076085,85870.0,85869.0,0.02410237]
[1741434749514,1.12076085,85870.0,85869.0,0.02410237]
[1741434749711,1.12088583,85870.0,85869.0,0.02410237]
[1741434749898,1.12087274,85870.0,85869.0,0.02410237]
[1741434750103,1.12089814,85870.0,85869.0,0.02410237]
[1741434750303,1.12076085,85870.0,85869.0,0.02410237]
[1741434751807,1.12076085,85870.0,85869.0,0.00556496]
[1741434751808,1.17741043,85870.0,85869.0,0.00556496]
[1741434752008,1.39511043,85870.0,85869.0,0.00556496]
[1741434752209,1.42631043,85870.0,85869.0,0.00556496]
[1741434752618,1.42631043,85870.0,85862.0,0.0628]
[1741434752818,0.4772739,85863.0,85862.0,0.0628]
[1741434753718,0.54340132,85863.0,85862.0,0.0628]
[1741434756410,0.56088133,85863.0,85862.0,0.0628]
[1741434757716,1.29492133,85863.0,85862.0,0.0628]
[1741434758527,1.29492133,85863.0,85862.0,0.07660513]
[1741434759024,1.29492133,85863.0,85862.0,0.09159284]
[1741434759217,1.29289391,85863.0,85862.0,0.09159284]
[1741434759725,1.29492133,85863.0,85862.0,0.09159284]
[1741434761026,1.29492133,85863.0,85862.0,0.09159298]
[1741434761822,1.29492133,85863.0,85862.0,0.11358705]
[1741434762420,1.29289391,85863.0,85862.0,0.11358705]
[1741434762624,1.29492133,85863.0,85862.0,0.11358705]
[1741434762821,1.29504799,85863.0,85862.0,0.11358705]
[1741434763022,1.29492133,85863.0,85862.0,0.11358705]
[1741434763625,1.29492133,85863.0,85862.0,0.09159298]
[1741434764021,1.29502766,85863.0,85862.0,0.09159298]
[1741434764222,1.65583368,85863.0,85862.0,0.09159298]
[1741434764527,1.65572133,85863.0,85862.0,0.09159298]
[1741434764728,0.93412133,85863.0,85862.0,0.09159298]
[1741434765124,1.65572133,85863.0,85862.0,0.09159298]
[1741434765929,1.62332133,85863.0,85862.0,0.09159298]
[1741434766933,1.59162133,85863.0,85862.0,0.09159298]
[1741434767129,1.66906133,85863.0,85862.0,0.12379298]
[1741434768436,1.66906133,85863.0,85862.0,0.14792002]
[1741434768733,1.66915505,85863.0,85862.0,0.16989123]
[1741434768943,1.66916223,85863.0,85862.0,0.16981776]
[1741434769240,1.66906133,85863.0,85862.0,0.16981776]
[1741434769639,1.66906133,85863.0,85862.0,0.14784652]
[1741434770337,1.30826133,85863.0,85862.0,0.14784652]
[1741434770733,1.30826133,85863.0,85862.0,0.14563619]
[1741434771232,1.30623391,85863.0,85862.0,0.14563619]
[1741434772530,1.11232001,85863.0,85862.0,0.28626474]
[1741434772734,1.16353791,85863.0,85862.0,0.16978954]
[1741434772941,1.16371483,85863.0,85862.0,0.16978954]
[1741434773345,1.28018873,85863.0,85862.0,0.16978954]
[1741434774030,1.25396733,85863.0,85862.0,0.16978954]
[1741434776741,1.25396733,85863.0,85862.0,0.13414106]
[1741434776941,1.25396733,85863.0,85862.0,0.1699741]
[1741434777649,1.25396733,85863.0,85862.0,0.2864493]
[1741434778053,1.13749343,85863.0,85862.0,0.2864493]
[1741434778253,1.06001343,85863.0,85862.0,0.29827093]
[1741434778547,0.00013692,85863.0,85862.0,0.27411758]
[1741434778752,0.06803052,85863.0,85862.0,0.31541788]
[1741434779140,0.03161944,85863.0,85862.0,0.36057145]
[1741434779746,0.03173052,85863.0,85862.0,0.33852019]
[1741434779941,0.03173052,85863.0,85862.0,0.48852019]
[1741434780147,0.03173052,85863.0,85862.0,0.70982019]
[1741434780344,1e-08,85863.0,85862.0,0.70982019]
[1741434780749,0.08917428,85867.0,85866.0,0.1164698]
[1741434780957,0.08917428,85867.0,85866.0,0.2085239]
[1741434781151,0.08917428,85867.0,85866.0,0.3585239]
[1741434781551,0.08917428,85867.0,85866.0,0.42790032]
[1741434781857,0.08926557,85867.0,85866.0,0.42790032]
[1741434782152,0.08926557,85867.0,85866.0,0.41964946]
[1741434782361,0.08926557,85867.0,85866.0,0.42784161]
[1741434782852,0.00232912,85869.0,85868.0,0.1164671]
[1741434783049,0.00017472,85875.0,85874.0,0.1164589]